[Event "Early-Titled-Tuesday-Blitz-April-02-2024"]
[Site "Chess.com"]
[Date "2024.04.02"]
[Round "10"]
[White "shirovin"]
[Black "PawnEatingZombie"]
[Result "1-0"]
[WhiteElo "2059"]
[BlackElo "2166"]
[TimeControl "180+1"]
[EndTime "9:55:20 PDT"]
[Termination "shirovin won by resignation"]

1. d4 {[%clk 0:03:00.9]} 1... Nf6 {[%clk 0:02:58.2]} 2. Bf4 {[%clk 0:03:01.3]}
2... g6 {[%clk 0:02:57.2]} 3. e3 {[%clk 0:03:00.2]} 3... Bg7 {[%clk 0:02:57.7]}
4. h4 {[%clk 0:02:59.8]} 4... h5 {[%clk 0:02:56.3]} 5. Nf3 {[%clk 0:02:58.8]}
5... O-O {[%clk 0:02:56.1]} 6. Nc3 {[%clk 0:02:52]} 6... d5 {[%clk 0:02:50.3]}
7. Be2 {[%clk 0:02:41.6]} 7... b6 {[%clk 0:02:48.9]} 8. Ne5 {[%clk 0:02:41.7]}
8... c5 {[%clk 0:02:48]} 9. g4 {[%clk 0:02:36.4]} 9... Nxg4 {[%clk 0:02:40.9]}
10. Bxg4 {[%clk 0:02:32]} 10... Bxg4 {[%clk 0:02:40.6]} 11. Nxg4 {[%clk
0:02:31.2]} 11... hxg4 {[%clk 0:02:41.5]} 12. Qxg4 {[%clk 0:02:30.7]} 12... Nc6
{[%clk 0:02:27.3]} 13. dxc5 {[%clk 0:02:09.6]} 13... d4 {[%clk 0:02:17.3]} 14.
O-O-O {[%clk 0:02:01.6]} 14... dxc3 {[%clk 0:02:11.1]} 15. Rxd8 {[%clk
0:01:58.9]} 15... cxb2+ {[%clk 0:02:11.6]} 16. Kb1 {[%clk 0:01:58.9]} 16...
Rfxd8 {[%clk 0:02:08.7]} 17. h5 {[%clk 0:01:58.2]} 17... Na5 {[%clk 0:01:23.4]}
18. Bg5 {[%clk 0:01:40.3]} 18... b5 {[%clk 0:01:09.7]} 19. hxg6 {[%clk
0:01:34.8]} 19... Nc4 {[%clk 0:00:57.7]} 20. a4 {[%clk 0:01:16.6]} 20... Na3+
{[%clk 0:00:27.1]} 21. Ka2 {[%clk 0:01:15.5]} 21... b1=Q+ {[%clk 0:00:24.5]} 22.
Rxb1 {[%clk 0:01:14.3]} 22... Nxb1 {[%clk 0:00:25.4]} 23. Kxb1 {[%clk 0:01:14]}
23... bxa4 {[%clk 0:00:25.3]} 24. gxf7+ {[%clk 0:01:11.2]} 24... Kxf7 {[%clk
0:00:25]} 25. Qc4+ {[%clk 0:01:11]} 25... Kf8 {[%clk 0:00:22.4]} 26. Qf4+ {[%clk
0:01:06.3]} 26... Kg8 {[%clk 0:00:20.8]} 27. Qc4+ {[%clk 0:01:05.6]} 27... Kf8
{[%clk 0:00:20.5]} 28. Qg4 {[%clk 0:00:57.3]} 28... Rab8+ {[%clk 0:00:19.9]} 29.
Ka2 {[%clk 0:00:52.6]} 29... Rb2+ {[%clk 0:00:17.8]} 30. Ka3 {[%clk 0:00:52.2]}
30... Rxc2 {[%clk 0:00:15.5]} 31. Qf5+ {[%clk 0:00:51.6]} 31... Kg8 {[%clk
0:00:10]} 32. Qxc2 {[%clk 0:00:52.1]} 1-0

[Event "Early-Titled-Tuesday-Blitz-April-02-2024"]
[Site "Chess.com"]
[Date "2024.04.02"]
[Round "10"]
[White "sonicdravise"]
[Black "SaiAgni_98"]
[Result "1-0"]
[WhiteElo "2621"]
[BlackElo "2523"]
[TimeControl "180+1"]
[EndTime "9:55:22 PDT"]
[Termination "sonicdravise won by resignation"]

1. d4 {[%clk 0:03:00.9]} 1... d5 {[%clk 0:02:59.8]} 2. c4 {[%clk 0:03:01.5]}
2... c6 {[%clk 0:03:00.2]} 3. Nf3 {[%clk 0:03:01.3]} 3... Nf6 {[%clk 0:03:00.6]}
4. e3 {[%clk 0:03:01.6]} 4... e6 {[%clk 0:03:00.9]} 5. b3 {[%clk 0:03:00.4]}
5... Nbd7 {[%clk 0:02:57.8]} 6. Bb2 {[%clk 0:03:00.6]} 6... Bd6 {[%clk 0:02:56]}
7. Bd3 {[%clk 0:03:01.1]} 7... O-O {[%clk 0:02:54.3]} 8. O-O {[%clk 0:03:01.4]}
8... b6 {[%clk 0:02:54.1]} 9. Nc3 {[%clk 0:03:01.6]} 9... Bb7 {[%clk 0:02:54.3]}
10. Qc2 {[%clk 0:03:01.7]} 10... dxc4 {[%clk 0:02:48.5]} 11. bxc4 {[%clk
0:02:44.1]} 11... e5 {[%clk 0:02:48.8]} 12. Ne4 {[%clk 0:02:36.9]} 12... Nxe4
{[%clk 0:02:17.3]} 13. Bxe4 {[%clk 0:02:37.8]} 13... Nf6 {[%clk 0:02:06.5]} 14.
dxe5 {[%clk 0:02:26.1]} 14... Nxe4 {[%clk 0:02:06.4]} 15. Qxe4 {[%clk
0:02:26.4]} 15... Be7 {[%clk 0:02:06.1]} 16. Nd4 {[%clk 0:02:15.8]} 16... g6
{[%clk 0:01:34.7]} 17. Nxc6 {[%clk 0:02:07.3]} 17... Qc7 {[%clk 0:01:32.4]} 18.
Nxe7+ {[%clk 0:02:07.2]} 18... Qxe7 {[%clk 0:01:33.3]} 19. Qf4 {[%clk
0:02:02.9]} 19... Rac8 {[%clk 0:01:31.3]} 20. Rad1 {[%clk 0:01:52.3]} 20... Qe6
{[%clk 0:01:31.3]} 21. Rd4 {[%clk 0:01:43.7]} 21... Qc6 {[%clk 0:01:09.9]} 22.
f3 {[%clk 0:01:39]} 22... Rfe8 {[%clk 0:01:04.4]} 23. Qh6 {[%clk 0:01:32]} 23...
Re6 {[%clk 0:01:03.3]} 24. Rh4 {[%clk 0:01:24.6]} 24... Qc5 {[%clk 0:00:51.2]}
25. Bd4 {[%clk 0:00:59.5]} 25... Qa3 {[%clk 0:00:29.1]} 26. Qxh7+ {[%clk
0:00:54.3]} 26... Kf8 {[%clk 0:00:29.3]} 27. Rf4 {[%clk 0:00:54.4]} 27... Rc7
{[%clk 0:00:25.5]} 28. Qh8+ {[%clk 0:00:47.8]} 28... Ke7 {[%clk 0:00:25.5]} 29.
Qg8 {[%clk 0:00:45.9]} 1-0

[Event "Early-Titled-Tuesday-Blitz-April-02-2024"]
[Site "Chess.com"]
[Date "2024.04.02"]
[Round "10"]
[White "kai_nov"]
[Black "ladytitan"]
[Result "0-1"]
[WhiteElo "2303"]
[BlackElo "2246"]
[TimeControl "180+1"]
[EndTime "9:55:33 PDT"]
[Termination "ladytitan won by checkmate"]

1. e4 {[%clk 0:02:51.1]} 1... c6 {[%clk 0:02:59.9]} 2. d4 {[%clk 0:02:49.7]}
2... d5 {[%clk 0:03:00.8]} 3. Nc3 {[%clk 0:02:48.4]} 3... dxe4 {[%clk
0:03:00.8]} 4. Nxe4 {[%clk 0:02:46.3]} 4... Nf6 {[%clk 0:03:01.7]} 5. Qe2 {[%clk
0:02:43.5]} 5... Nxe4 {[%clk 0:02:55.8]} 6. Qxe4 {[%clk 0:02:41.5]} 6... Nd7
{[%clk 0:02:53.5]} 7. Nf3 {[%clk 0:02:40.4]} 7... Nf6 {[%clk 0:02:53.5]} 8. Qd3
{[%clk 0:02:37.1]} 8... Bg4 {[%clk 0:02:48.5]} 9. Be2 {[%clk 0:02:34.6]} 9... e6
{[%clk 0:02:48.1]} 10. O-O {[%clk 0:02:24.3]} 10... Bd6 {[%clk 0:02:47.5]} 11.
h3 {[%clk 0:02:22.5]} 11... Bh5 {[%clk 0:02:47.2]} 12. c3 {[%clk 0:02:21.9]}
12... O-O {[%clk 0:02:46.3]} 13. Bg5 {[%clk 0:02:20.8]} 13... Bc7 {[%clk
0:02:43.4]} 14. Ne5 {[%clk 0:02:13.6]} 14... Bg6 {[%clk 0:02:37.4]} 15. Nxg6
{[%clk 0:01:57.4]} 15... hxg6 {[%clk 0:02:38.3]} 16. Bf3 {[%clk 0:01:51.3]}
16... e5 {[%clk 0:02:31.2]} 17. Rfe1 {[%clk 0:01:45.6]} 17... Re8 {[%clk
0:02:14.9]} 18. Rad1 {[%clk 0:01:42.7]} 18... exd4 {[%clk 0:01:47.5]} 19. Rxe8+
{[%clk 0:01:40.7]} 19... Qxe8 {[%clk 0:01:48.4]} 20. Bxf6 {[%clk 0:01:39.8]}
20... gxf6 {[%clk 0:01:48.3]} 21. cxd4 {[%clk 0:01:36.2]} 21... Rd8 {[%clk
0:01:41.5]} 22. Qb3 {[%clk 0:01:33.9]} 22... Rxd4 {[%clk 0:01:32.4]} 23. Rc1
{[%clk 0:01:14.5]} 23... Qe5 {[%clk 0:01:26]} 24. g3 {[%clk 0:01:10.5]} 24...
Qg5 {[%clk 0:01:08.2]} 25. Re1 {[%clk 0:01:00.9]} 25... Bxg3 {[%clk 0:00:30.1]}
26. Re8+ {[%clk 0:00:59.8]} 26... Kg7 {[%clk 0:00:27.8]} 27. fxg3 {[%clk
0:00:56.1]} 27... Qxg3+ {[%clk 0:00:28]} 28. Bg2 {[%clk 0:00:53.7]} 28... Rd3
{[%clk 0:00:20.8]} 29. Qc2 {[%clk 0:00:48.5]} 29... Qd6 {[%clk 0:00:16.4]} 30.
Qe2 {[%clk 0:00:46]} 30... Rd1+ {[%clk 0:00:15.8]} 31. Bf1 {[%clk 0:00:45.5]}
31... Rd2 {[%clk 0:00:14.5]} 32. Qf3 {[%clk 0:00:42.3]} 32... Qh2# {[%clk
0:00:14.1]} 0-1

[Event "Early-Titled-Tuesday-Blitz-April-02-2024"]
[Site "Chess.com"]
[Date "2024.04.02"]
[Round "10"]
[White "MNyuyu"]
[Black "nikitakhoroshev"]
[Result "0-1"]
[WhiteElo "2389"]
[BlackElo "2569"]
[TimeControl "180+1"]
[EndTime "9:55:39 PDT"]
[Termination "nikitakhoroshev won by resignation"]

1. d4 {[%clk 0:03:00.9]} 1... Nf6 {[%clk 0:02:58.5]} 2. Nf3 {[%clk 0:03:01.5]}
2... c5 {[%clk 0:02:48.2]} 3. e3 {[%clk 0:03:00.1]} 3... b6 {[%clk 0:02:45.5]}
4. Be2 {[%clk 0:03:00.2]} 4... Bb7 {[%clk 0:02:45.3]} 5. O-O {[%clk 0:03:00.9]}
5... g6 {[%clk 0:02:44.8]} 6. b3 {[%clk 0:03:01.5]} 6... Bg7 {[%clk 0:02:44.8]}
7. Bb2 {[%clk 0:03:02.1]} 7... O-O {[%clk 0:02:44.5]} 8. c4 {[%clk 0:03:02.4]}
8... cxd4 {[%clk 0:02:42.5]} 9. Nxd4 {[%clk 0:02:56.4]} 9... d5 {[%clk
0:02:41.2]} 10. Nc3 {[%clk 0:02:53.2]} 10... dxc4 {[%clk 0:02:36.5]} 11. Bxc4
{[%clk 0:02:52]} 11... Nc6 {[%clk 0:02:35.6]} 12. Nxc6 {[%clk 0:02:46.7]} 12...
Bxc6 {[%clk 0:02:33.7]} 13. Qe2 {[%clk 0:02:46.8]} 13... Qd7 {[%clk 0:01:51.4]}
14. Rfd1 {[%clk 0:02:42.8]} 14... Qf5 {[%clk 0:01:51.3]} 15. Rac1 {[%clk
0:02:34.1]} 15... Rfd8 {[%clk 0:01:39.7]} 16. a4 {[%clk 0:02:25]} 16... h5
{[%clk 0:01:36]} 17. h3 {[%clk 0:02:11.3]} 17... Qg5 {[%clk 0:01:32.8]} 18. f4
{[%clk 0:02:04.2]} 18... Qg3 {[%clk 0:01:29.3]} 19. Qf2 {[%clk 0:01:56.7]} 19...
Qxf2+ {[%clk 0:01:28.1]} 20. Kxf2 {[%clk 0:01:56]} 20... Ne4+ {[%clk 0:01:28.3]}
21. Nxe4 {[%clk 0:01:34.1]} 21... Bxb2 {[%clk 0:01:29.2]} 22. Rxd8+ {[%clk
0:01:33.3]} 22... Rxd8 {[%clk 0:01:28.5]} 23. Rc2 {[%clk 0:01:33.4]} 23... Bxe4
{[%clk 0:01:14]} 24. Rxb2 {[%clk 0:01:33]} 24... Kf8 {[%clk 0:01:04.5]} 25. g3
{[%clk 0:01:17.5]} 25... f6 {[%clk 0:01:03.2]} 26. Be2 {[%clk 0:01:08.1]} 26...
e5 {[%clk 0:01:00.3]} 27. Bf3 {[%clk 0:01:06.4]} 27... Bf5 {[%clk 0:00:55.6]}
28. e4 {[%clk 0:01:00.5]} 28... Bxh3 {[%clk 0:00:52.3]} 29. Rc2 {[%clk
0:00:53.9]} 29... Ke7 {[%clk 0:00:51.8]} 30. Ke3 {[%clk 0:00:35.9]} 30... Rc8
{[%clk 0:00:51]} 31. Rxc8 {[%clk 0:00:26.1]} 31... Bxc8 {[%clk 0:00:50.1]} 32.
fxe5 {[%clk 0:00:25]} 32... fxe5 {[%clk 0:00:49.7]} 33. Be2 {[%clk 0:00:22.1]}
33... a5 {[%clk 0:00:48.1]} 34. Bc4 {[%clk 0:00:17.8]} 34... Be6 {[%clk
0:00:46.2]} 35. Kd3 {[%clk 0:00:14.3]} 35... g5 {[%clk 0:00:45.5]} 0-1

[Event "Early-Titled-Tuesday-Blitz-April-02-2024"]
[Site "Chess.com"]
[Date "2024.04.02"]
[Round "10"]
[White "viviania"]
[Black "MagnusCarlsen"]
[Result "0-1"]
[WhiteElo "2912"]
[BlackElo "3218"]
[TimeControl "180+1"]
[EndTime "9:55:40 PDT"]
[Termination "MagnusCarlsen won by resignation"]

1. Nf3 {[%clk 0:02:56.9]} 1... Nf6 {[%clk 0:02:57.9]} 2. g3 {[%clk 0:02:56.8]}
2... b6 {[%clk 0:02:58.2]} 3. d4 {[%clk 0:02:54.5]} 3... Bb7 {[%clk 0:02:59.1]}
4. c4 {[%clk 0:02:54.3]} 4... g6 {[%clk 0:02:59.3]} 5. Bg2 {[%clk 0:02:53.8]}
5... Bg7 {[%clk 0:02:59.4]} 6. O-O {[%clk 0:02:53.7]} 6... O-O {[%clk
0:02:59.9]} 7. d5 {[%clk 0:02:53.7]} 7... Na6 {[%clk 0:02:59.7]} 8. Nc3 {[%clk
0:02:52.9]} 8... Nc5 {[%clk 0:03:00.4]} 9. Qc2 {[%clk 0:02:43.1]} 9... e6 {[%clk
0:02:45.6]} 10. Rd1 {[%clk 0:02:40.7]} 10... exd5 {[%clk 0:02:45.4]} 11. cxd5
{[%clk 0:02:40.9]} 11... Re8 {[%clk 0:02:45.8]} 12. Bg5 {[%clk 0:02:18.1]} 12...
a5 {[%clk 0:02:44.3]} 13. Rac1 {[%clk 0:02:12.2]} 13... h6 {[%clk 0:02:43.9]}
14. Bxf6 {[%clk 0:02:12.1]} 14... Qxf6 {[%clk 0:02:42.5]} 15. Nd4 {[%clk
0:02:03.8]} 15... Ba6 {[%clk 0:02:38.2]} 16. e3 {[%clk 0:02:01]} 16... h5 {[%clk
0:02:38.2]} 17. a3 {[%clk 0:01:54.7]} 17... a4 {[%clk 0:02:38.5]} 18. Nxa4
{[%clk 0:01:52.2]} 18... Bd3 {[%clk 0:02:26.5]} 19. Rxd3 {[%clk 0:01:51]} 19...
Nxd3 {[%clk 0:02:27.4]} 20. Qxd3 {[%clk 0:01:51.1]} 20... Rxa4 {[%clk
0:02:26.5]} 21. Rxc7 {[%clk 0:01:44.5]} 21... Qd8 {[%clk 0:02:21.5]} 22. Nb5
{[%clk 0:01:33.2]} 22... Bxb2 {[%clk 0:02:21.2]} 23. d6 {[%clk 0:01:32.8]} 23...
Ra5 {[%clk 0:02:18]} 24. Bh3 {[%clk 0:01:23.5]} 24... Qf6 {[%clk 0:02:17.6]} 25.
Bxd7 {[%clk 0:01:19.6]} 25... Rd8 {[%clk 0:02:17.5]} 26. Bc6 {[%clk 0:01:13]}
26... Bxa3 {[%clk 0:02:17.3]} 27. Bd5 {[%clk 0:01:11.6]} 27... Rxd6 {[%clk
0:01:28.6]} 28. Nxd6 {[%clk 0:01:02.7]} 28... Bxd6 {[%clk 0:01:28.4]} 29. Rd7
{[%clk 0:00:35.7]} 29... Be7 {[%clk 0:01:21.5]} 30. Qe4 {[%clk 0:00:26.1]} 30...
Kf8 {[%clk 0:01:17.4]} 31. Rb7 {[%clk 0:00:25.7]} 31... Rc5 {[%clk 0:01:09.7]}
32. Kg2 {[%clk 0:00:24]} 32... Qd6 {[%clk 0:01:07.9]} 33. Bb3 {[%clk 0:00:23.6]}
33... Re5 {[%clk 0:01:05.8]} 34. Qf3 {[%clk 0:00:22.3]} 34... Rf5 {[%clk
0:01:03.1]} 35. Qe4 {[%clk 0:00:22.1]} 35... Qd2 {[%clk 0:01:00]} 36. Qxe7+
{[%clk 0:00:19.1]} 36... Kg7 {[%clk 0:01:00.4]} 37. Qxf7+ {[%clk 0:00:18.3]}
37... Rxf7 {[%clk 0:01:00.3]} 38. Rxf7+ {[%clk 0:00:17.3]} 38... Kh6 {[%clk
0:01:01.2]} 39. h4 {[%clk 0:00:16.7]} 39... Qd3 {[%clk 0:01:01.1]} 40. Be6
{[%clk 0:00:14]} 40... Qe4+ {[%clk 0:01:00.5]} 0-1

[Event "Early-Titled-Tuesday-Blitz-April-02-2024"]
[Site "Chess.com"]
[Date "2024.04.02"]
[Round "10"]
[White "schachlana"]
[Black "InitiatingASC"]
[Result "0-1"]
[WhiteElo "2311"]
[BlackElo "2350"]
[TimeControl "180+1"]
[EndTime "9:55:43 PDT"]
[Termination "InitiatingASC won by resignation"]

1. Nf3 {[%clk 0:02:51.3]} 1... Nf6 {[%clk 0:02:59]} 2. g3 {[%clk 0:02:51]} 2...
g6 {[%clk 0:02:57.1]} 3. Bg2 {[%clk 0:02:51.9]} 3... Bg7 {[%clk 0:02:57.5]} 4.
O-O {[%clk 0:02:52.5]} 4... O-O {[%clk 0:02:57.5]} 5. c4 {[%clk 0:02:53.4]} 5...
c6 {[%clk 0:02:56.2]} 6. d4 {[%clk 0:02:53.9]} 6... d6 {[%clk 0:02:56.7]} 7. Nc3
{[%clk 0:02:54.4]} 7... Nbd7 {[%clk 0:02:57.1]} 8. e4 {[%clk 0:02:55.1]} 8... e5
{[%clk 0:02:56.4]} 9. Re1 {[%clk 0:02:55.4]} 9... Qe7 {[%clk 0:02:55.7]} 10. Be3
{[%clk 0:02:52.7]} 10... Re8 {[%clk 0:02:52.7]} 11. h3 {[%clk 0:02:52.8]} 11...
Nf8 {[%clk 0:02:52.3]} 12. d5 {[%clk 0:02:51.7]} 12... h6 {[%clk 0:02:51.5]} 13.
Rc1 {[%clk 0:02:51.3]} 13... Bd7 {[%clk 0:02:45]} 14. Qd2 {[%clk 0:02:51.4]}
14... Red8 {[%clk 0:02:44.3]} 15. Bxh6 {[%clk 0:02:49.8]} 15... cxd5 {[%clk
0:02:39.2]} 16. cxd5 {[%clk 0:02:47.9]} 16... Rdc8 {[%clk 0:02:38.3]} 17. Bxg7
{[%clk 0:02:47.3]} 17... Kxg7 {[%clk 0:02:38.4]} 18. Nh2 {[%clk 0:02:43.7]}
18... Rc4 {[%clk 0:02:34]} 19. b3 {[%clk 0:02:42.7]} 19... Rc7 {[%clk
0:02:32.7]} 20. f4 {[%clk 0:02:42.3]} 20... Rac8 {[%clk 0:02:31]} 21. Nf3 {[%clk
0:02:29.6]} 21... exf4 {[%clk 0:02:22.5]} 22. gxf4 {[%clk 0:02:27.1]} 22... Nxe4
{[%clk 0:02:22.9]} 23. Qd4+ {[%clk 0:01:58.2]} 23... Qf6 {[%clk 0:02:19.1]} 24.
Qxe4 {[%clk 0:01:46.8]} 24... Rxc3 {[%clk 0:02:16.4]} 25. Rxc3 {[%clk
0:01:47.7]} 25... Rxc3 {[%clk 0:02:12.1]} 26. Ng5 {[%clk 0:01:44.8]} 26... Nh7
{[%clk 0:02:02]} 27. Nxh7 {[%clk 0:01:29.4]} 27... Kxh7 {[%clk 0:02:01.3]} 28.
Qe7 {[%clk 0:01:29.5]} 28... Qf5 {[%clk 0:01:43.9]} 29. Qxd6 {[%clk 0:01:20.7]}
29... Kg8 {[%clk 0:01:34.6]} 30. Qb8+ {[%clk 0:01:08.9]} 30... Bc8 {[%clk
0:01:32.7]} 31. Qe5 {[%clk 0:01:00.6]} 31... Qxe5 {[%clk 0:01:30.3]} 32. fxe5
{[%clk 0:01:01.5]} 32... Bxh3 {[%clk 0:01:30.3]} 33. Bxh3 {[%clk 0:00:55.5]}
33... Rxh3 {[%clk 0:01:30.2]} 34. Rd1 {[%clk 0:00:56.4]} 34... Kf8 {[%clk
0:01:29.9]} 35. d6 {[%clk 0:00:55]} 35... Ke8 {[%clk 0:01:30]} 36. Rc1 {[%clk
0:00:52.6]} 36... Re3 {[%clk 0:01:26.2]} 37. Rc7 {[%clk 0:00:52.2]} 37... Rxe5
{[%clk 0:01:24.3]} 38. Rxb7 {[%clk 0:00:51.5]} 38... a5 {[%clk 0:01:24.6]} 39.
a3 {[%clk 0:00:41.5]} 39... Rd5 {[%clk 0:01:23.3]} 40. Ra7 {[%clk 0:00:35]}
40... g5 {[%clk 0:01:19]} 41. Kf2 {[%clk 0:00:28.1]} 41... f5 {[%clk 0:01:14.2]}
42. Ke3 {[%clk 0:00:18.3]} 42... Rb5 {[%clk 0:01:09.3]} 43. Kd4 {[%clk 0:00:14]}
43... f4 {[%clk 0:01:04.4]} 44. Kc4 {[%clk 0:00:12.1]} 44... Rf5 {[%clk
0:01:04.4]} 45. Rg7 {[%clk 0:00:09.6]} 45... f3 {[%clk 0:01:03.7]} 46. Kd3
{[%clk 0:00:10]} 46... f2 {[%clk 0:00:59.7]} 0-1

[Event "Early-Titled-Tuesday-Blitz-April-02-2024"]
[Site "Chess.com"]
[Date "2024.04.02"]
[Round "10"]
[White "CarlosjPineror"]
[Black "Tugrik1969"]
[Result "1-0"]
[WhiteElo "2684"]
[BlackElo "2546"]
[TimeControl "180+1"]
[EndTime "9:55:50 PDT"]
[Termination "CarlosjPineror won on time"]

1. e4 {[%clk 0:03:00.9]} 1... c5 {[%clk 0:02:59.3]} 2. Nf3 {[%clk 0:03:00.2]}
2... d6 {[%clk 0:02:59.8]} 3. d4 {[%clk 0:02:59.1]} 3... cxd4 {[%clk 0:03:00]}
4. Nxd4 {[%clk 0:03:00]} 4... Nf6 {[%clk 0:03:00.5]} 5. Nc3 {[%clk 0:03:00.5]}
5... g6 {[%clk 0:03:01.1]} 6. Be3 {[%clk 0:03:00.4]} 6... Bg7 {[%clk 0:03:01.6]}
7. f3 {[%clk 0:03:01]} 7... O-O {[%clk 0:03:02.1]} 8. Qd2 {[%clk 0:03:01.7]}
8... Nc6 {[%clk 0:03:02.4]} 9. O-O-O {[%clk 0:03:02.4]} 9... Bd7 {[%clk
0:03:02.3]} 10. h4 {[%clk 0:02:59.3]} 10... Rc8 {[%clk 0:03:00.2]} 11. h5 {[%clk
0:02:37.3]} 11... Nxh5 {[%clk 0:02:58.5]} 12. g4 {[%clk 0:02:27.5]} 12... Ng3
{[%clk 0:02:58.5]} 13. Rh3 {[%clk 0:02:23.2]} 13... Nxf1 {[%clk 0:02:58.5]} 14.
Rxf1 {[%clk 0:02:19.9]} 14... Ne5 {[%clk 0:02:59]} 15. b3 {[%clk 0:01:59.7]}
15... Qa5 {[%clk 0:02:45.8]} 16. Kb2 {[%clk 0:01:42.5]} 16... Qb4 {[%clk
0:02:39.1]} 17. Nd5 {[%clk 0:01:35.1]} 17... Nc4+ {[%clk 0:02:10.7]} 18. Kc1
{[%clk 0:01:30.1]} 18... Qxd2+ {[%clk 0:00:55]} 19. Bxd2 {[%clk 0:01:25.7]}
19... Nxd2 {[%clk 0:00:45.6]} 20. Nxe7+ {[%clk 0:01:20.6]} 20... Kh8 {[%clk
0:00:45.6]} 21. Rfh1 {[%clk 0:01:21.3]} 21... h5 {[%clk 0:00:35.3]} 22. Rxh5+
{[%clk 0:01:17.1]} 22... gxh5 {[%clk 0:00:33]} 23. Rxh5+ {[%clk 0:01:18]} 23...
Bh6 {[%clk 0:00:33.5]} 24. Rxh6+ {[%clk 0:01:15.4]} 24... Kg7 {[%clk 0:00:32.8]}
25. Ndf5+ {[%clk 0:01:15.9]} 25... Bxf5 {[%clk 0:00:32.9]} 26. Nxf5+ {[%clk
0:01:16.8]} 26... Kg8 {[%clk 0:00:33.2]} 27. Kxd2 {[%clk 0:01:13.9]} 27... Rce8
{[%clk 0:00:28.2]} 28. Rxd6 {[%clk 0:01:10.7]} 28... Rd8 {[%clk 0:00:26.7]} 29.
Rd5 {[%clk 0:01:10.3]} 29... Rxd5+ {[%clk 0:00:25.3]} 30. exd5 {[%clk
0:01:10.5]} 30... Rd8 {[%clk 0:00:24.2]} 31. c4 {[%clk 0:01:10.4]} 31... f6
{[%clk 0:00:23.2]} 32. Kd3 {[%clk 0:01:08.2]} 32... Kf7 {[%clk 0:00:23.6]} 33.
Kd4 {[%clk 0:01:08.6]} 33... b6 {[%clk 0:00:22.5]} 34. b4 {[%clk 0:01:07.8]}
34... Rh8 {[%clk 0:00:19.5]} 35. c5 {[%clk 0:01:05.6]} 35... bxc5+ {[%clk
0:00:20.1]} 36. bxc5 {[%clk 0:01:05]} 36... Rh2 {[%clk 0:00:18]} 37. c6 {[%clk
0:01:02.5]} 37... Rxa2 {[%clk 0:00:12.8]} 38. c7 {[%clk 0:01:02.4]} 38... Rc2
{[%clk 0:00:12.3]} 39. Nd6+ {[%clk 0:00:59.7]} 1-0

[Event "Early-Titled-Tuesday-Blitz-April-02-2024"]
[Site "Chess.com"]
[Date "2024.04.02"]
[Round "10"]
[White "javirec"]
[Black "LileKoridze"]
[Result "0-1"]
[WhiteElo "2272"]
[BlackElo "2408"]
[TimeControl "180+1"]
[EndTime "9:55:54 PDT"]
[Termination "LileKoridze won on time"]

1. e4 {[%clk 0:03:00.9]} 1... c5 {[%clk 0:02:59.8]} 2. c3 {[%clk 0:02:56.6]}
2... Nf6 {[%clk 0:02:58.9]} 3. e5 {[%clk 0:02:56.5]} 3... Nd5 {[%clk 0:02:58.2]}
4. Bc4 {[%clk 0:02:56.8]} 4... Nb6 {[%clk 0:02:57.3]} 5. Bb3 {[%clk 0:02:57.3]}
5... e6 {[%clk 0:02:54.5]} 6. d4 {[%clk 0:02:55.9]} 6... cxd4 {[%clk 0:02:55]}
7. cxd4 {[%clk 0:02:56.8]} 7... d6 {[%clk 0:02:55.3]} 8. Qe2 {[%clk 0:02:48.8]}
8... Nc6 {[%clk 0:02:52.7]} 9. Nf3 {[%clk 0:02:48.8]} 9... Be7 {[%clk
0:02:52.2]} 10. O-O {[%clk 0:02:48]} 10... O-O {[%clk 0:02:52.6]} 11. Nc3 {[%clk
0:02:46.5]} 11... dxe5 {[%clk 0:02:47.3]} 12. dxe5 {[%clk 0:02:47.4]} 12... Nd4
{[%clk 0:02:47.4]} 13. Nxd4 {[%clk 0:02:45.1]} 13... Qxd4 {[%clk 0:02:48.3]} 14.
Rd1 {[%clk 0:02:42.8]} 14... Qh4 {[%clk 0:02:47.8]} 15. Ne4 {[%clk 0:02:22.8]}
15... Bd7 {[%clk 0:02:35.2]} 16. Bc2 {[%clk 0:01:46.7]} 16... Bc6 {[%clk
0:02:33.6]} 17. Bd2 {[%clk 0:01:30.8]} 17... Rad8 {[%clk 0:02:26.5]} 18. Ba5
{[%clk 0:01:23]} 18... Rd5 {[%clk 0:02:08.2]} 19. Bc3 {[%clk 0:00:55]} 19...
Rfd8 {[%clk 0:02:04.8]} 20. Ng3 {[%clk 0:00:28.1]} 20... Nc4 {[%clk 0:00:59.6]}
21. Rxd5 {[%clk 0:00:20.2]} 21... Bxd5 {[%clk 0:00:56.8]} 22. Ne4 {[%clk
0:00:12.1]} 22... b5 {[%clk 0:00:47.4]} 23. b3 {[%clk 0:00:08.2]} 23... Nb6
{[%clk 0:00:44.3]} 24. Re1 {[%clk 0:00:08]} 24... b4 {[%clk 0:00:43.2]} 25. Bb2
{[%clk 0:00:08]} 25... Bxe4 {[%clk 0:00:40.2]} 26. Bxe4 {[%clk 0:00:05.2]} 26...
Nd5 {[%clk 0:00:39.1]} 27. g3 {[%clk 0:00:05.1]} 27... Qh3 {[%clk 0:00:36.9]}
28. Bg2 {[%clk 0:00:03]} 28... Qh6 {[%clk 0:00:37.1]} 29. Rd1 {[%clk 0:00:03.3]}
29... g6 {[%clk 0:00:35.6]} 30. Bxd5 {[%clk 0:00:02.2]} 30... exd5 {[%clk
0:00:35.3]} 31. e6 {[%clk 0:00:02.3]} 31... Qf8 {[%clk 0:00:33.1]} 0-1